bitfinex/quotes_SOLUSD_20250822
["timestamp","ask_amount","ask_price","bid_price","bid_amount"]
[1755897885244,10.18,201.97,201.96,11.68448005]
[1755897885960,10.18,201.97,201.96,3.56159004]
[1755897887859,51.74,201.97,201.96,3.56159004]
[1755897888064,10.18,201.97,201.96,3.56159004]
[1755897888270,51.74,201.97,201.96,3.56159004]
[1755897888443,51.74,201.97,201.96,11.68448005]
[1755897888641,51.74,201.97,201.96,3.56159004]
[1755897889456,51.74,201.97,201.96,11.68448005]
[1755897889655,51.74,201.97,201.96,3.56159004]
[1755897890957,51.74,201.97,201.92,0.03]
[1755897891158,51.74,201.97,201.93,3.57946477]
[1755897891365,51.74,201.97,201.92,0.03]
[1755897891366,51.74,201.97,201.94,3.57946477]
[1755897891551,51.74,201.97,201.95,3.57946477]
[1755897891746,51.74,201.97,201.96,3.57946477]
[1755897897956,9.5,201.97,201.96,11.70235478]
[1755897898357,51.02,201.97,201.96,8.73347934]
[1755897898756,51.02,201.97,201.96,3.57946477]
[1755897898973,51.02,201.97,201.96,8.73347934]
[1755897899644,9.5,201.97,201.96,8.73347934]
[1755897899847,51.02,201.97,201.96,8.73347934]
[1755897900078,9.5,201.97,201.96,8.73347934]
[1755897900257,51.02,201.97,201.96,5.15401457]
[1755897900575,71.21294006,201.97,201.96,3.60149861]
[1755897900781,0.28432314,201.95,201.92,0.03]
[1755897900980,23.40098605,201.98,201.94,5.15401457]
[1755897901187,23.40098605,201.98,201.97,5.15401457]
[1755897901359,64.92098605,201.98,201.97,5.81401457]
[1755897901851,64.92098605,201.98,201.94,0.66]
[1755897902177,23.40098605,201.98,201.96,5.15401457]
[1755897902357,23.40098605,201.98,201.97,8.77837904]
[1755897902678,23.40098605,201.98,201.92,0.03]
[1755897902679,9.5,201.95,201.92,0.03]
[1755897902862,9.5,201.93,201.92,0.03]
[1755897903562,51.0,201.93,201.92,8.80837904]
[1755897903762,9.5,201.97,201.92,8.80837904]
[1755897904079,9.5,201.97,201.96,8.11837904]
[1755897904270,51.0,201.97,201.96,8.11837904]
[1755897904468,41.5,201.97,201.96,8.11837904]
[1755897904791,13.90098605,201.98,201.96,8.77837904]
[1755897904956,41.5,201.97,201.92,0.03]
[1755897905150,41.5,201.97,201.96,8.11837904]
[1755897905551,41.5,201.97,201.96,0.66]
[1755897905748,41.5,201.97,201.96,8.77837904]
[1755897906292,41.5,201.97,201.94,0.66]
[1755897906468,41.5,201.97,201.95,0.66]
[1755897906793,41.5,201.97,201.96,8.11837904]
[1755897907567,41.5,201.97,201.95,0.66]
[1755897907769,41.5,201.97,201.96,8.11837904]
[1755897908065,41.48,201.97,201.96,8.11837904]
[1755897908261,41.48,201.97,201.92,0.69]
[1755897908482,41.48,201.97,201.96,8.11837904]
[1755897909763,23.40098605,201.98,201.96,8.11837904]
[1755897909977,41.48,201.97,201.93,0.66]
[1755897910288,41.48,201.97,201.94,0.66]
[1755897910512,41.48,201.97,201.95,0.66]
[1755897911016,41.48,201.97,201.93,0.66]
[1755897911183,41.48,201.97,201.96,8.11837904]
[1755897911385,41.48,201.97,201.96,8.77837904]
[1755897912127,0.06,201.98,201.96,8.77837904]
[1755897912285,18.28,202.0,201.97,17.39188111]
[1755897912491,26.9,202.14,201.99,16.23675808]
[1755897912492,9.5,202.1,201.99,16.23675808]
[1755897912799,9.5,202.1,202.09,8.11837904]
[1755897913005,50.96,202.1,202.09,11.72633004]
[1755897913404,50.96,202.1,202.09,3.607951]
[1755897913726,50.96,202.1,202.09,11.72633004]
[1755897915129,51.62,202.1,202.09,3.607951]
[1755897915295,74.11730453,202.1,202.09,2.827951]
[1755897915495,9.5,202.03,202.0,8.11837904]
[1755897915718,41.46,202.02,202.0,8.11837904]
[1755897916295,9.5,202.01,202.0,8.11837904]
[1755897916709,0.49900834,202.13,202.0,8.11837904]
[1755897916710,9.5,202.07,202.0,16.89675808]
[1755897916925,9.5,202.08,202.06,8.11837904]
[1755897917127,41.44,202.08,202.07,8.77837904]
[1755897917299,41.44,202.08,201.97,0.28432314]
[1755897917501,50.94,202.08,202.07,8.11837904]
[1755897918035,41.44,202.08,202.07,8.11837904]
[1755897918349,50.94,202.08,202.07,8.11837904]
[1755897918522,26.9,202.14,202.07,8.11837904]
[1755897918523,9.5,202.1,202.07,8.11837904]
[1755897918711,26.9,202.14,202.02,8.11837904]
[1755897918712,9.5,202.13,202.09,8.11837904]
[1755897918919,41.44,202.12,202.08,0.66]
[1755897919128,41.44,202.12,202.02,8.11837904]
[1755897919308,9.5,202.08,202.02,0.66]
[1755897919507,41.44,202.07,202.02,0.66]
[1755897919713,41.44,202.07,202.03,0.66]
[1755897920112,41.44,202.07,202.06,8.11837904]
[1755897920344,9.5,202.06,202.04,8.11837904]
[1755897920514,9.5,202.06,202.05,8.11837904]
[1755897921214,9.5,202.06,202.04,8.11837904]
[1755897921414,9.5,202.06,202.04,8.14837904]
[1755897921656,10.08,202.06,202.04,0.03]
[1755897921821,0.58,202.05,202.04,0.03]
[1755897922019,10.08,202.06,202.04,0.03]
[1755897922250,0.58,202.05,202.04,0.03]
[1755897922747,8.69837904,202.05,202.04,0.03]
[1755897922954,9.99900834,202.06,202.04,0.03]
[1755897923245,0.58,202.05,202.04,0.03]
[1755897924654,8.69837904,202.05,202.04,0.03]
[1755897924838,9.5,202.06,202.04,8.14837904]
[1755897925019,9.5,202.06,202.05,8.11837904]
[1755897925222,50.9,202.06,202.05,8.11837904]
[1755897925629,9.5,202.06,202.05,8.11837904]
[1755897925830,0.06,202.09,202.05,8.77837904]
[1755897926043,0.06,202.09,202.04,0.03]
[1755897926044,0.06,202.09,202.08,8.11837904]
[1755897926261,0.06,202.12,202.08,8.11837904]
[1755897926555,0.06,202.12,202.11,8.11837904]
[1755897926925,0.06,202.12,202.11,8.77837904]
[1755897927357,0.06,202.12,202.11,12.36118836]
[1755897927741,0.06,202.12,202.11,12.36117663]
[1755897928666,0.06,202.12,202.11,4.24279759]
[1755897928830,0.06,202.12,202.11,11.70117663]
[1755897929027,0.06,202.12,202.11,3.58279759]
[1755897929264,0.06,202.12,202.11,11.70117663]
[1755897929560,9.56,202.12,202.11,11.70117663]
[1755897929935,9.56,202.12,202.11,3.5811388]
[1755897930144,9.56,202.12,202.11,11.69951784]
[1755897932460,9.56,202.12,202.11,12.39951784]
[1755897932671,9.56,202.12,202.11,11.69951784]
[1755897933644,9.56,202.12,202.11,3.5811388]
[1755897933848,9.56,202.12,202.11,11.69951784]
[1755897935968,9.56,202.12,202.11,15.27459354]
[1755897936187,9.56,202.12,202.11,11.69345474]
[1755897936479,50.92,202.12,202.11,11.69345474]
[1755897937475,50.92,202.12,202.11,12.39345474]
[1755897937654,50.92,202.12,202.11,11.69345474]
[1755897937840,9.56,202.12,202.11,11.69345474]
[1755897938042,50.92,202.12,202.11,11.69345474]
[1755897938457,50.92,202.12,202.11,12.39345474]
[1755897939555,50.92,202.12,202.11,11.69345474]
[1755897941350,50.92,202.12,202.11,12.39345474]
[1755897942158,50.9,202.12,202.11,12.39345474]
[1755897942469,41.4,202.12,202.11,12.39345474]
[1755897942777,41.4,202.12,202.11,8.81837904]
[1755897942946,50.9,202.12,202.11,11.69185223]
[1755897943145,50.9,202.12,202.09,0.03]
[1755897943146,24.23460235,202.12,202.09,0.03]
[1755897943372,9.5,202.1,202.09,0.03]
[1755897943750,18.59738738,202.1,202.09,0.03]
[1755897944071,32.19298139,202.1,202.09,0.03]
[1755897944576,32.47730453,202.1,202.09,0.03]
[1755897948186,49.37991715,202.07,202.06,0.03]
[1755897948371,99.31730453,202.07,202.06,0.03]
[1755897948566,99.79730453,202.07,202.06,0.03]
[1755897949516,73.79730453,202.07,202.06,0.03]
[1755897955208,32.47730453,202.07,202.06,0.03]
[1755897955380,73.79730453,202.07,202.06,0.03]
[1755897956597,32.47730453,202.07,202.06,0.03]
[1755897956805,73.77730453,202.07,202.06,0.03]
[1755897958076,9.5,202.05,202.04,0.03]
[1755897958277,31.99730453,202.05,202.04,0.03]
[1755897958504,18.11738738,202.05,202.04,0.03]
[1755897958705,9.5,202.05,202.04,4.30338793]
[1755897958923,58.91837904,202.05,202.04,4.30338793]
[1755897959218,50.8,202.05,202.04,4.30338793]
[1755897959510,9.5,202.05,202.04,12.42176697]
[1755897959688,8.78,202.07,202.04,12.42176697]
[1755897960014,0.06,202.1,202.04,0.03]
[1755897960015,8.78,202.05,202.04,0.03]
[1755897960216,41.3,202.06,202.04,3.61120385]
[1755897960504,8.78,202.05,202.04,0.72]
[1755897960708,8.78,202.05,202.04,0.03]
[1755897960873,23.53460235,202.05,202.04,0.03]
[1755897961077,31.93730453,202.05,202.04,0.03]
[1755897962312,57.93730453,202.05,202.04,0.03]
[1755897962479,90.43892549,202.05,202.04,0.03]
[1755897962679,64.43892549,202.05,202.04,0.03]
[1755897962907,0.06,202.1,202.04,8.14837904]
[1755897963116,0.06,202.1,202.09,8.11837904]
[1755897963324,0.06,202.1,202.09,11.70019359]
[1755897963495,0.06,202.1,202.09,11.69503744]
[1755897964334,0.06,202.1,202.09,11.69456797]
[1755897964510,0.06,202.1,202.09,3.57618893]
[1755897964825,4.6711959,202.1,202.09,3.57618893]
[1755897965026,4.6711959,202.1,202.09,11.69456797]
[1755897965913,4.6711959,202.1,202.09,3.57618893]
[1755897967596,4.6711959,202.1,202.06,8.11837904]
[1755897967597,4.6711959,202.1,202.07,3.57618893]
[1755897967804,41.26,202.09,202.08,3.57618893]
[1755897967997,41.26,202.09,202.07,8.11837904]
[1755897968204,41.26,202.09,202.08,11.69456797]
[1755897969704,4.6711959,202.1,202.08,11.69456797]
[1755897969911,4.6711959,202.1,202.09,11.69456797]
[1755897970114,41.32,202.1,202.09,11.69456797]
[1755897970518,41.32,202.1,202.04,0.03]
[1755897970519,54.70957494,202.1,202.04,8.14837904]
[1755897970833,12.72957494,202.06,202.05,3.57507085]
[1755897971006,53.98957494,202.06,202.05,3.57507085]
[1755897971400,45.8711959,202.06,202.05,3.57507085]
[1755897971820,45.8711959,202.06,202.05,3.60507085]
[1755897972304,45.8711959,202.06,202.05,11.72344989]
[1755897972517,45.8711959,202.06,202.05,8.14837904]
[1755897972738,4.6111959,202.06,202.05,11.72420856]
[1755897972933,45.8711959,202.06,202.05,3.60582952]
[1755897973103,4.6711959,202.1,202.05,11.72420856]
[1755897973421,4.6711959,202.1,202.09,8.11837904]
[1755897973629,45.9311959,202.1,202.09,11.69420856]
[1755897974138,0.06,202.1,202.09,11.69420856]
[1755897977518,0.06,202.12,202.09,11.69420856]
[1755897977729,0.06,202.12,202.11,8.11837904]
[1755897978040,26.9,202.14,202.11,11.69420856]
[1755897978241,26.9,202.14,202.13,8.11837904]
[1755897978536,26.9,202.14,202.13,11.69420856]
[1755897978830,73.4111959,202.14,202.13,11.69420856]
[1755897979028,31.5111959,202.14,202.13,11.69420856]
[1755897979203,72.7511959,202.14,202.13,3.57582952]
[1755897979397,72.7511959,202.14,202.13,11.69420856]
[1755897979836,72.7511959,202.14,202.13,3.57582952]
[1755897980002,4.6111959,202.12,202.05,1.029]
[1755897980322,41.22,202.11,202.06,3.5724026]
[1755897980518,41.22,202.11,202.1,8.11837904]
[1755897980722,41.22,202.11,202.1,11.69078164]
[1755897980935,41.22,202.11,202.1,3.5724026]
[1755897980936,41.88,202.11,202.1,3.5724026]
[1755897981105,4.6111959,202.1,202.08,8.11837904]
[1755897981300,4.6111959,202.1,202.09,3.57335252]
[1755897981734,4.6111959,202.13,202.09,11.69294273]
[1755897981924,26.9,202.14,202.12,8.11837904]
[1755897982234,26.9,202.14,202.13,11.69294273]
[1755897982401,26.9,202.14,202.13,3.57456369]
[1755897982912,26.9,202.14,202.13,11.69294273]
[1755897983321,0.06,202.15,202.13,19.81132177]
[1755897983516,0.06,202.15,202.08,5.3888041]
[1755897983517,0.06,202.15,202.14,19.81132177]
[1755897983737,4.6111959,202.21,202.15,8.11837904]
[1755897983919,4.6111959,202.21,202.2,8.11837904]
[1755897984236,4.6111959,202.21,202.2,11.69294273]
[1755897984922,4.6111959,202.21,202.2,3.57456369]
[1755897985126,41.22,202.22,202.2,11.69294273]
[1755897985312,41.88,202.22,202.21,3.57456369]
[1755897985518,41.22,202.22,202.21,3.57456369]
[1755897985721,0.66,202.22,202.21,3.57456369]
[1755897985954,41.88,202.22,202.21,3.57456369]
[1755897986117,4.6111959,202.23,202.21,3.57456369]
[1755897986317,4.6111959,202.23,202.07,4.933445]
[1755897986318,4.6111959,202.23,202.22,11.69294273]
[1755897986543,45.8311959,202.23,202.22,3.57456369]
[1755897986745,45.8311959,202.23,202.16,3.57456369]
[1755897986955,4.6111959,202.19,202.17,3.57456369]
[1755897987119,4.6111959,202.25,202.18,3.57456369]
[1755897987315,4.6111959,202.23,202.19,3.57456369]
[1755897987547,4.6111959,202.23,202.2,3.57456369]
[1755897987736,4.6111959,202.23,202.21,3.57456369]
[1755897988050,4.6111959,202.23,202.22,3.57456369]
[1755897988430,4.6111959,202.23,202.22,11.69294273]
[1755897989556,0.06,202.27,202.22,11.69294273]
[1755897989740,0.06,202.27,202.26,8.11837904]
[1755897990053,4.6711959,202.27,202.26,11.69294273]
[1755897990624,4.6711959,202.27,202.26,8.11837904]
[1755897990842,0.06,202.27,202.26,11.66466247]
[1755897991054,4.6711959,202.27,202.26,11.66466247]
[1755897991230,4.6711959,202.27,202.26,11.66446436]
[1755897991945,0.06,202.27,202.26,11.66446436]
[1755897993133,0.68,202.31,202.26,11.66446436]
[1755897993346,5.2911959,202.3,202.29,8.11837904]
[1755897993554,5.2911959,202.3,202.29,11.66446436]
[1755897993761,5.2911959,202.3,202.29,3.54608532]
[1755897994063,4.6111959,202.28,202.24,8.11837904]
[1755897994270,4.6111959,202.28,202.15,26.6263751]
[1755897994271,41.88,202.27,202.25,11.65921464]
[1755897994562,41.2,202.27,202.26,3.5408356]
[1755897994746,4.6111959,202.25,202.24,3.54081087]
[1755897994931,12.72957494,202.25,202.24,3.54126039]
[1755897995133,4.6111959,202.19,202.18,8.11837904]
[1755897995370,4.6111959,202.19,202.18,3.54453177]
[1755897995577,4.6111959,202.19,202.18,11.66291081]
[1755897995941,41.2,202.2,202.18,11.66291081]
[1755897996146,4.6111959,202.22,202.15,13.03078109]
[1755897996147,4.6111959,202.24,202.19,11.66291081]
[1755897996347,4.6111959,202.24,202.23,8.11837904]
[1755897996565,4.6111959,202.24,202.23,11.66291081]
[1755897997070,45.8111959,202.26,202.23,11.66291081]
[1755897997239,4.6111959,202.26,202.24,3.54453177]
[1755897997439,4.6111959,202.26,202.25,3.54453177]
[1755897997641,4.6111959,202.26,202.25,11.66291081]
[1755897997841,13.40957494,202.26,202.25,3.54453177]
[1755897998068,13.40957494,202.26,202.22,8.11837904]
[1755897998069,4.6111959,202.23,202.22,8.11837904]
[1755897998268,45.8111959,202.23,202.22,11.6602304]
[1755897998461,4.6111959,202.23,202.22,11.6602304]
[1755897999070,5.2911959,202.23,202.22,11.6602304]
[1755897999484,5.2911959,202.23,202.22,3.54185136]
[1755897999656,3.6121959,202.23,202.22,8.11837904]
[1755897999979,4.2921959,202.23,202.22,3.5425132]
[1755898000550,3.6121959,202.23,202.22,11.66089224]
[1755898000756,44.8121959,202.25,202.22,11.66053923]
[1755898001058,3.6121959,202.23,202.16,0.28432314]
[1755898001258,0.68,202.24,202.17,3.54203397]
[1755898001472,3.6121959,202.23,202.18,3.54203397]
[1755898001670,4.2921959,202.23,202.19,3.54203397]
[1755898001962,4.2921959,202.23,202.2,3.54203397]
[1755898002163,4.2921959,202.23,202.21,11.66041301]
[1755898002388,4.2921959,202.23,202.22,3.54203397]
[1755898002584,3.6121959,202.23,202.22,3.54203397]
[1755898003060,4.2921959,202.23,202.22,3.54605694]
[1755898003572,45.4921959,202.23,202.22,3.54605694]
[1755898005492,45.4921959,202.23,202.22,3.57605694]
[1755898005795,53.61057494,202.23,202.22,3.57605694]
[1755898005973,53.61057494,202.23,202.22,3.58115508]
[1755898006170,3.6121959,202.23,202.22,11.69953412]
[1755898006490,44.7921959,202.23,202.22,11.69953412]
[1755898007100,3.6121959,202.25,202.22,11.69953412]
[1755898007390,44.7921959,202.25,202.24,8.11837904]
[1755898007566,44.7921959,202.25,202.24,11.66953412]
[1755898008530,45.4721959,202.25,202.24,3.55115508]
[1755898009027,3.6121959,202.23,202.22,8.14837904]
[1755898009329,4.2921959,202.23,202.22,11.70493856]
[1755898009535,3.6121959,202.23,202.22,11.70533278]
[1755898009821,3.6121959,202.23,202.22,11.70542294]
[1755898011140,4.2921959,202.23,202.22,11.70542294]
[1755898011931,4.2921959,202.23,202.22,3.5870439]
[1755898012232,4.2921959,202.23,202.22,2.86830904]
[1755898012437,12.41057494,202.23,202.22,2.86830904]
[1755898012602,12.41057494,202.23,202.22,1.42830904]
[1755898012802,4.2921959,202.23,202.22,1.27830904]
[1755898013006,12.41057494,202.23,202.22,1.27830904]
[1755898013614,12.41057494,202.23,202.19,0.03]
[1755898013813,8.11837904,202.21,202.19,0.03]
[1755898014113,52.91057494,202.2,202.19,0.03]
[1755898014320,53.49057494,202.2,202.19,0.03]
[1755898015116,52.91057494,202.2,202.19,0.03]
[1755898015619,53.49057494,202.2,202.19,0.03]
[1755898015816,67.08616895,202.2,202.19,0.03]
[1755898016910,58.96778991,202.2,202.19,0.03]
[1755898017117,58.38778991,202.2,202.19,0.03]
[1755898017313,66.50616895,202.2,202.19,0.03]
[1755898017529,25.32616895,202.2,202.19,0.03]
[1755898017732,17.78778991,202.2,202.19,0.03]
[1755898017922,17.20778991,202.2,202.19,0.03]
[1755898018128,12.4316867,202.2,202.19,0.03]
[1755898018336,79.0,202.42,202.19,0.03]
[1755898018337,0.14104051,202.41,202.36,10.0]
[1755898018646,1995.08914577,202.45,202.43,10.0]
[1755898018849,1885.62520636,202.45,202.44,16.23675808]
[1755898019007,1737.33205698,202.45,202.44,8.11837904]
[1755898019368,1720.02526736,202.45,202.44,28.97527905]
[1755898019843,1610.56132795,202.45,202.44,43.79778005]
[1755898020017,1608.08522474,202.45,202.44,43.79778005]
[1755898020355,1608.08522474,202.45,202.44,14.822501]
[1755898020513,1608.08522474,202.45,202.44,27.67834102]
[1755898021433,1608.08522474,202.45,202.4,10.0]
[1755898021631,1501.97000584,202.45,202.44,12.85584002]
[1755898021835,1499.49842898,202.45,202.44,27.68273602]
[1755898022721,1387.82616124,202.45,202.44,27.68273602]
[1755898023151,1385.35458438,202.45,202.44,12.85584002]
[1755898023561,1273.68231664,202.45,202.44,12.85584002]
[1755898023961,1271.27073978,202.45,202.44,22.85584002]
[1755898024275,1268.79977364,202.45,202.44,22.85584002]
[1755898024580,1268.79977364,202.45,202.44,12.85584002]
[1755898024764,1266.3288075,202.45,202.44,16.37273471]
[1755898025269,1266.3288075,202.45,202.44,3.51689469]
[1755898025270,1263.85784136,202.45,202.44,3.51689469]
[1755898025464,1276.91368138,202.45,202.44,3.51689469]
[1755898025773,1276.91368138,202.45,202.44,2.79689469]
[1755898025969,1321.57368138,202.45,202.36,12.85584002]
[1755898026275,1308.71784136,202.45,202.38,12.85584002]
[1755898026579,12.85584002,202.43,202.36,12.85584002]
[1755898026782,12.85584002,202.39,202.28,10.0]
[1755898027075,12.85584002,202.37,202.29,0.7]
[1755898027285,0.7,202.39,202.29,0.7]
[1755898027452,57.47584002,202.38,202.32,12.85584002]
[1755898027647,0.7,202.39,202.33,12.85584002]
[1755898027858,1263.35784136,202.45,202.38,25.71168004]
[1755898028058,1263.35784136,202.45,202.44,12.85584002]
[1755898028059,1152.72715048,202.45,202.44,12.85584002]
[1755898028261,985.27795549,202.45,202.44,26.45143403]
[1755898029155,876.07726461,202.45,202.44,26.45143403]
[1755898030053,766.87657373,202.45,202.44,26.45143403]
[1755898030376,779.73241375,202.45,202.38,13.59559401]
[1755898030679,12.85584002,202.39,202.36,13.59559401]
[1755898030876,12.85584002,202.39,202.29,0.4943398]
[1755898030877,12.85584002,202.37,202.28,25.16521977]
[1755898031054,12.85584002,202.34,202.29,12.85584002]
[1755898031261,44.66,202.35,202.3,26.45143403]
[1755898031463,12.85584002,202.31,202.23,5.96719557]
[1755898031657,44.66,202.32,202.23,0.03]
[1755898031872,57.49584002,202.32,202.26,12.85584002]
[1755898032072,12.85584002,202.32,202.27,13.59559401]
[1755898032273,12.85584002,202.3,202.27,13.59559401]
[1755898032455,57.47584002,202.31,202.26,13.59559401]
[1755898032656,12.85584002,202.27,202.23,0.03]
[1755898032868,12.85584002,202.25,202.23,0.03]
[1755898033068,12.44184002,202.24,202.23,0.03]
[1755898033268,13.14184002,202.24,202.23,0.03]
[1755898034476,57.78184002,202.24,202.23,0.03]
[1755898034858,10.0,202.39,202.23,0.03]
[1755898034859,0.7,202.29,202.23,0.03]
[1755898035059,12.85584002,202.27,202.23,0.03]
[1755898035271,0.7,202.26,202.23,0.03]
[1755898035447,44.58,202.25,202.23,0.03]
[1755898035648,57.43584002,202.25,202.23,0.03]
[1755898035878,44.56,202.24,202.23,0.03]
[1755898036062,0.7,202.29,202.23,0.03]
[1755898036562,12.85584002,202.24,202.23,0.03]
[1755898036764,58.05584002,202.24,202.23,0.03]
[1755898037078,58.03584002,202.24,202.23,0.03]
[1755898037289,58.03584002,202.24,202.19,0.03]
[1755898037290,13.55584002,202.24,202.19,0.03]
[1755898037476,12.85584002,202.2,202.19,0.03]
[1755898037779,57.33584002,202.2,202.19,0.03]
[1755898037950,58.03584002,202.2,202.19,0.03]
[1755898038149,45.18,202.2,202.19,3.55458778]
[1755898038355,58.03584002,202.2,202.19,3.55458778]
[1755898039356,45.18,202.2,202.19,3.55458778]
[1755898039866,44.38,202.2,202.19,3.55458778]
[1755898040371,44.36,202.2,202.19,3.55458778]
[1755898040572,57.21584002,202.2,202.19,3.55458778]
[1755898041680,57.91584002,202.2,202.19,3.55458778]
[1755898041909,57.83584002,202.2,202.19,3.55458778]
[1755898042283,57.13584002,202.2,202.19,3.55458778]
[1755898042699,10.0,202.19,202.17,0.03]
[1755898042990,10.0,202.19,202.14,0.03]
[1755898042991,13.87991715,202.13,202.06,0.03]
[1755898043169,13.87991715,202.13,201.99,2.58488713]
[1755898043170,12.85584002,202.07,201.99,2.58488713]
[1755898043370,12.85584002,202.05,201.96,0.7]
[1755898043586,12.85584002,202.05,201.98,0.7]
[1755898043891,0.28432314,202.04,201.96,2.58546333]
[1755898044071,57.80016316,202.04,201.96,2.58546333]
[1755898044386,57.51584002,202.04,201.96,2.58546333]
[1755898044567,57.49584002,202.04,201.96,2.58546333]
[1755898046864,44.64,202.04,201.96,3.28546333]
[1755898047075,57.78016316,202.04,201.96,2.58546333]
[1755898047297,13.14016316,202.03,201.93,14.30559401]
[1755898047676,13.14016316,202.03,201.93,0.71]
[1755898048282,57.60016316,202.03,201.93,0.71]
[1755898048875,48.6,202.14,201.96,26.71]
[1755898049068,12.85584002,202.03,201.96,0.71]
[1755898049273,57.27584002,202.03,201.97,26.0]
[1755898049694,57.27584002,202.03,201.96,26.71]
[1755898050000,57.56016316,202.03,201.96,26.71]
[1755898050383,13.14016316,202.03,201.96,26.71]
[1755898050587,57.50016316,202.03,201.97,0.03]
[1755898051897,13.14016316,202.03,201.97,0.03]
[1755898052093,57.44016316,202.03,201.97,0.03]
[1755898052296,13.14016316,202.03,201.97,0.03]
[1755898052483,57.40016316,202.03,201.97,0.03]
[1755898052799,13.14016316,202.03,201.97,0.03]
[1755898053229,0.28432314,202.03,201.97,0.03]
[1755898053420,57.07584002,202.03,201.97,0.03]
[1755898054213,12.85584002,202.03,201.97,0.03]
[1755898054514,57.03584002,202.03,201.97,0.03]
[1755898054928,12.85584002,202.01,201.97,0.03]
[1755898055110,12.85584002,201.98,201.97,0.03]
[1755898055417,57.28016316,201.98,201.97,0.03]
[1755898057027,0.28432314,201.97,201.92,0.03]
[1755898057213,12.85584002,201.93,201.92,0.03]
[1755898057390,56.91584002,201.93,201.92,0.03]
[1755898058286,0.28432314,201.92,201.89,0.03]
[1755898058597,13.14016316,201.91,201.89,0.03]
[1755898059000,56.85584002,201.9,201.89,0.03]
[1755898059792,56.83584002,201.9,201.89,0.03]
[1755898060192,56.79584002,201.9,201.89,0.03]
[1755898062319,56.98016316,201.9,201.89,0.03]
[1755898062936,0.28432314,201.89,201.88,0.2]
[1755898063100,13.14016316,201.89,201.88,0.2]
[1755898063516,56.94016316,201.89,201.88,0.2]
[1755898065718,13.14016316,201.89,201.88,0.2]
[1755898065926,56.82016316,201.89,201.88,0.2]
[1755898066705,56.82016316,201.89,201.87,0.03]
[1755898066706,12.85584002,201.88,201.87,0.03]
[1755898069727,56.39584002,201.88,201.87,0.03]
[1755898070920,12.85584002,201.88,201.87,0.03]
[1755898071125,56.31584002,201.88,201.87,0.03]
[1755898071429,56.60016316,201.88,201.86,0.03]
[1755898071611,12.85584002,201.87,201.86,0.03]
[1755898072014,13.59559401,201.93,201.86,0.03]
[1755898072218,12.85584002,201.87,201.86,0.03]
[1755898072429,56.31584002,201.87,201.86,0.03]
[1755898072731,56.60016316,201.87,201.86,0.03]
[1755898075306,48.52990078,201.87,201.86,0.03]
[1755898076118,12.85584002,201.87,201.86,0.03]
[1755898076432,56.15584002,201.87,201.86,0.03]
[1755898078541,51.43671406,201.87,201.86,0.03]
[1755898079519,51.33671406,201.87,201.86,0.03]
[1755898079939,8.13671406,201.87,201.86,0.03]
[1755898080150,51.29671406,201.87,201.86,0.03]
[1755898080836,51.25671406,201.87,201.86,0.03]
[1755898081044,8.13671406,201.87,201.86,0.03]
[1755898081208,51.23671406,201.87,201.86,0.03]
[1755898081719,51.21671406,201.87,201.86,0.03]
[1755898083249,8.13671406,201.87,201.86,0.7]
[1755898083551,51.19671406,201.87,201.86,0.7]
[1755898084831,8.13671406,201.87,201.86,0.7]
[1755898085036,51.11671406,201.87,201.86,0.7]
[1755898085350,30.19231601,201.87,201.84,0.03]
[1755898085654,30.19231601,201.87,201.83,0.03]
[1755898085655,8.13671406,201.84,201.83,0.03]
[1755898085845,51.3210372,201.84,201.76,0.67]
[1755898086153,8.13671406,201.77,201.76,0.67]
[1755898086371,51.03671406,201.77,201.76,0.67]
[1755898086655,51.03671406,201.77,201.73,0.67]
[1755898086971,8.13671406,201.75,201.74,0.87]
[1755898087115,51.03671406,201.75,201.74,0.2]
[1755898087318,51.03671406,201.75,201.74,0.87]
[1755898087517,51.03671406,201.75,201.74,0.2]